bitfinex/quotes_ETHUSD_20260131
["timestamp","ask_amount","ask_price","bid_price","bid_amount"]
[1769875889468,13.34650882,2525.5,2524.0,14.5]
[1769875889960,13.34650882,2525.5,2523.7,0.990587]
[1769875890156,1.38696132,2525.4,2523.8,0.49688924]
[1769875890603,1.38696132,2525.4,2523.7,14.5]
[1769875890604,14.73347014,2525.4,2523.7,14.5]
[1769875890809,0.98998138,2525.3,2523.7,14.5]
[1769875891488,14.3364902,2525.3,2523.7,14.5]
[1769875892094,15.1664902,2525.3,2523.7,14.5]
[1769875892311,13.34650882,2525.1,2523.4,2.34481744]
[1769875892497,13.34650882,2524.9,2523.4,1.51481744]
[1769875892807,0.99017743,2524.8,2523.4,1.51481744]
[1769875893301,0.99017743,2524.8,2523.5,14.5]
[1769875894809,0.99005979,2525.1,2523.7,0.99060902]
[1769875895014,1.60019471,2525.1,2523.8,0.01571462]
[1769875895212,0.99005979,2525.1,2523.8,0.01571462]
[1769875895583,0.99005979,2525.1,2524.0,0.01571462]
[1769875895895,0.98990298,2525.5,2524.3,0.01571462]
[1769875896203,0.98962869,2526.2,2524.6,0.01571462]
[1769875896510,1.38704997,2526.2,2524.5,0.01571462]
[1769875897210,14.63665569,2526.2,2524.4,0.83]
[1769875897418,15.44922111,2526.1,2524.4,0.83]
[1769875897781,15.34682111,2526.1,2524.4,0.83]
[1769875898006,0.83,2526.0,2524.4,0.83]
[1769875898218,15.62660572,2525.8,2523.5,0.01571462]
[1769875898410,13.24960572,2525.6,2523.5,1.48932075]
[1769875898609,13.24960572,2525.4,2523.5,1.48932075]
[1769875898790,13.24960572,2525.4,2523.4,1.51481744]
[1769875898991,13.24960572,2525.2,2523.4,1.51481744]
[1769875899190,14.07960572,2525.1,2523.4,1.51481744]
[1769875899513,13.24960572,2524.9,2523.4,1.51481744]
[1769875899689,13.24960572,2524.7,2523.4,1.51481744]
[1769875900222,13.24960572,2524.5,2523.4,1e-08]
[1769875900695,0.83,2524.6,2523.4,1e-08]
[1769875900901,0.01571462,2525.2,2523.4,1e-08]
[1769875900902,16.71549909,2525.4,2523.4,1e-08]
[1769875901104,16.71549909,2525.4,2523.5,0.01571462]
[1769875901105,13.74555492,2525.3,2523.5,0.01571462]
[1769875901309,0.83,2525.2,2523.5,0.01571462]
[1769875901512,1.45755549,2525.1,2523.5,0.01571462]
[1769875901696,14.21312903,2525.1,2523.4,1e-08]
[1769875902417,0.83,2525.0,2523.4,1e-08]
[1769875902616,0.83,2524.9,2523.4,1e-08]
[1769875903120,0.99017743,2524.8,2523.4,1e-08]
[1769875903328,0.57808872,2524.7,2523.4,1e-08]
[1769875903705,0.57808872,2524.7,2523.6,0.0011]
[1769875903907,0.99017743,2524.8,2523.6,0.0011]
[1769875904831,15.13857354,2524.7,2523.6,0.0011]
[1769875905002,2.383,2524.5,2523.6,0.0011]
[1769875905201,2.383,2524.5,2523.4,1e-08]
[1769875905401,15.13857354,2524.5,2523.4,1e-08]
[1769875905599,1.61288294,2524.4,2523.4,1e-08]
[1769875905834,12.75557354,2524.3,2523.2,0.0011]
[1769875906019,15.13857354,2523.9,2523.0,0.0011]
[1769875906201,15.13857354,2523.9,2522.3,0.0011]
[1769875906544,2.383,2523.7,2522.3,0.0011]
[1769875906704,14.26943089,2523.8,2522.3,0.0011]
[1769875907029,3.37364828,2523.6,2522.3,0.0011]
[1769875907920,16.12922182,2523.6,2522.3,0.0011]
[1769875908621,0.99064828,2523.6,2522.3,0.0011]
[1769875909133,0.83,2523.8,2522.4,1.00682734]
[1769875909731,0.99053052,2523.9,2522.4,1.00682734]
[1769875910633,13.74610406,2523.9,2522.3,1.51032054]
[1769875910807,2.383,2523.8,2522.3,0.0011]
[1769875911128,0.99060902,2523.7,2522.3,0.0011]
[1769875911331,0.99060902,2523.7,2522.3,14.5011]
[1769875911640,0.99021665,2524.8,2522.9,0.2335703]
[1769875911841,0.001,2524.9,2523.4,13.24660142]
[1769875912012,0.99114622,2524.9,2523.5,15.40126156]
[1769875912206,0.99114986,2524.9,2523.6,14.5]
[1769875912412,0.99114986,2524.9,2523.0,13.24660142]
[1769875912609,0.57817027,2524.8,2523.1,1.32466014]
[1769875912813,12.75557354,2524.6,2523.1,1.32466014]
[1769875913041,12.75557354,2524.6,2522.7,0.9910017]
[1769875913042,0.9902951,2524.5,2522.7,0.9910017]
[1769875913452,0.9902951,2524.5,2522.8,14.5]
[1769875914357,0.9902951,2524.5,2523.0,0.01571462]
[1769875914559,1.77070491,2524.4,2523.0,0.01571462]
[1769875915230,1.77070491,2524.4,2523.2,0.01571462]
[1769875915428,2.76105517,2524.4,2523.2,0.01571462]
[1769875915828,1.82035026,2524.4,2523.2,0.01571462]
[1769875916047,1.82035026,2524.4,2523.1,0.99084459]
[1769875916241,1.82033679,2524.4,2523.1,0.99084459]
[1769875916447,1.82033679,2524.4,2523.2,0.01571462]
[1769875916647,1.82033679,2524.4,2523.1,1.00655921]
[1769875916864,1.82033679,2524.4,2523.2,1.94699376]
[1769875917034,1.82034648,2524.4,2523.2,1.94699376]
[1769875917236,1.82034648,2524.4,2523.3,0.99076606]
[1769875917437,0.001,2524.3,2523.3,0.99076606]
[1769875917655,0.001,2524.3,2523.3,1.00648068]
[1769875917843,0.001,2524.3,2523.5,0.01571462]
[1769875918042,0.001,2524.3,2523.4,0.69165387]
[1769875918244,3.9615725,2524.9,2523.5,13.24660142]
[1769875918245,0.001,2524.9,2523.5,13.24660142]
[1769875918557,0.001,2524.9,2523.7,0.01571462]
[1769875918754,0.99113948,2524.9,2523.7,0.01571462]
[1769875919052,0.001,2524.9,2523.7,0.01571462]
[1769875919254,0.001,2524.9,2524.0,0.99049128]
[1769875919556,0.001,2524.9,2524.1,0.51253172]
[1769875919764,0.79370791,2525.5,2524.1,0.51253172]
[1769875920066,16.71449178,2526.0,2524.1,0.51253172]
[1769875920067,13.58557354,2525.8,2524.1,0.51253172]
[1769875920229,13.58557354,2525.8,2524.2,14.5]
[1769875920434,1.45753198,2525.7,2524.3,1.50125317]
[1769875920647,1.45753198,2525.7,2524.2,14.5]
[1769875920648,12.75557354,2525.2,2524.1,0.4968171]
[1769875920850,0.01571462,2525.1,2523.9,0.99052754]
[1769875921051,3.97463286,2526.0,2523.9,14.23712896]
[1769875921252,0.01571462,2525.6,2524.2,0.9904128]
[1769875921428,12.75557354,2525.6,2524.1,0.99043408]
[1769875921627,12.75557354,2525.6,2523.6,13.24660142]
[1769875921864,0.83,2525.5,2524.1,0.99043204]
[1769875922157,0.98974622,2525.9,2524.2,0.01571462]
[1769875922158,0.83,2525.7,2524.2,0.01571462]
[1769875922327,0.83,2525.7,2524.1,0.99043204]
[1769875922527,0.83,2525.7,2524.2,0.49522663]
[1769875922953,13.74531976,2525.9,2524.2,0.49522663]
[1769875923143,0.98974622,2525.9,2524.4,0.01571462]
[1769875923343,3.95891824,2526.0,2524.5,0.9902951]
[1769875923565,0.87479031,2525.9,2524.6,0.49672651]
[1769875923942,12.75557354,2525.8,2524.7,0.01571462]
[1769875924139,12.75557354,2525.8,2523.6,13.26231604]
[1769875924140,12.75557354,2525.8,2524.4,0.990333]
[1769875924348,0.87479031,2525.9,2524.4,1.00604762]
[1769875924548,3.95898491,2526.1,2524.6,0.01571462]
[1769875924751,3.95898491,2526.1,2524.8,0.01571462]
[1769875925067,0.98943285,2526.7,2524.8,13.26231604]
[1769875925232,12.75557354,2524.3,2523.1,0.01571462]
[1769875925435,12.75557354,2524.7,2522.6,0.99102352]
[1769875925643,0.83,2524.2,2522.7,0.01571462]
[1769875925834,0.83,2524.2,2522.8,0.99093745]
[1769875926034,0.83,2524.2,2522.7,1.34351769]
[1769875926363,0.83,2524.2,2522.7,1.32780307]
[1769875926865,0.83,2525.7,2523.7,0.01571462]
[1769875927029,0.83,2525.7,2523.6,13.38189867]
[1769875927030,2.383,2525.5,2523.6,13.38189867]
[1769875927234,3.37298138,2525.3,2523.7,1.33976133]
[1769875927567,3.37298138,2525.3,2523.4,0.99072502]
[1769875927735,3.37298138,2525.3,2523.5,0.99067491]
[1769875928067,3.37298138,2525.3,2524.0,0.01571462]
[1769875928068,0.98998138,2525.3,2524.0,0.01571462]
[1769875928296,13.21433116,2526.4,2524.4,13.39761329]
[1769875928297,3.95840494,2526.3,2524.4,13.39761329]
[1769875928474,4.78840494,2526.3,2524.9,0.01571462]
[1769875929277,3.95835807,2526.5,2525.0,14.37199767]
[1769875929478,20.79286157,2527.4,2525.3,13.39761329]
[1769875929479,0.001,2526.1,2525.3,13.39761329]
[1769875929701,0.001,2526.1,2525.4,1.33976133]
[1769875929864,0.001,2526.1,2525.5,0.01571462]
[1769875930067,0.98939369,2526.8,2525.5,0.01571462]
[1769875930378,0.98939369,2526.8,2525.4,1.33976133]
[1769875930379,0.83,2527.1,2525.4,1.33976133]
[1769875930579,0.83,2527.1,2525.1,0.01571462]
[1769875930781,0.83,2527.1,2525.3,0.01571462]
[1769875930782,0.1024,2527.0,2525.3,0.01571462]
[1769875931159,0.83,2527.0,2525.5,0.01571462]
[1769875931478,0.98935454,2526.9,2525.3,13.38189867]
[1769875931679,0.49467727,2526.8,2525.0,0.01571462]
[1769875932266,13.31673116,2526.7,2524.7,0.01571462]
[1769875932465,13.31673116,2526.7,2524.5,13.39761329]
[1769875932697,13.31673116,2526.7,2524.9,0.01571462]
[1769875932698,0.83,2526.6,2524.9,0.01571462]
[1769875932900,1.40443312,2526.5,2525.2,0.01571462]
[1769875933104,0.49467727,2526.8,2525.1,0.01571462]
[1769875933309,0.98943285,2526.7,2525.1,0.01571462]
[1769875933472,0.98943285,2526.7,2524.7,0.01571462]
[1769875933674,1.37418415,2526.6,2524.8,0.01571462]
[1769875933874,1.37418415,2526.6,2525.0,0.01571462]
[1769875934303,0.54418415,2526.6,2525.0,0.01571462]
[1769875934480,0.83,2526.5,2525.0,0.01571462]
[1769875934687,0.1024,2526.4,2524.8,0.01571462]
[1769875934885,0.1024,2526.4,2524.3,1.20604254]
[1769875935205,0.1024,2526.4,2524.3,2.19638809]
[1769875935701,1.81958951,2526.3,2524.5,13.38189867]
[1769875935907,0.1024,2526.2,2524.3,1.19032792]
[1769875936204,0.1024,2526.2,2524.3,2.18069255]
[1769875936399,0.58803476,2526.2,2524.5,13.38189867]
[1769875936708,0.58803476,2526.2,2525.0,0.01571462]
[1769875936905,0.58803476,2526.2,2524.8,13.39761329]
[1769875937107,0.98958951,2526.3,2525.0,0.01571462]
[1769875937303,0.98958951,2526.3,2525.0,13.39761329]
[1769875937506,3.9580422,2526.6,2525.1,1.00577441]
[1769875937718,3.9580422,2526.6,2525.1,13.39761329]
[1769875937875,0.57775142,2526.5,2525.2,1.33976133]
[1769875938510,0.57775142,2526.5,2525.2,1.35547595]
[1769875939189,0.57775142,2526.5,2525.2,14.73737462]
[1769875939507,0.98944572,2526.7,2525.6,0.98986379]
[1769875939802,0.98944572,2526.7,2525.5,14.38749451]
[1769875940002,0.98944572,2526.7,2525.5,14.38751072]
[1769875940380,0.98944572,2526.7,2525.5,13.39761329]
[1769875940581,1.9293891,2526.7,2525.6,1.24342832]
[1769875941197,1.9293891,2526.7,2524.7,0.01571462]
[1769875941506,1.9293891,2526.7,2524.8,0.99015159]
[1769875941707,0.001,2526.5,2524.7,13.38189867]
[1769875942108,0.001,2526.5,2524.7,14.37211378]
[1769875942309,0.001,2526.5,2524.8,0.99017282]
[1769875942616,0.001,2526.5,2525.0,0.01571462]
[1769875942822,0.001,2526.5,2524.8,14.38778611]
[1769875943730,0.99051118,2526.5,2524.8,14.37207149]
[1769875943948,0.57785559,2526.4,2524.9,13.38189867]
[1769875944233,0.57785559,2526.4,2524.8,0.99017282]
[1769875944234,0.57785559,2526.4,2525.1,13.38189867]
[1769875944403,0.001,2526.5,2525.6,13.38189867]
[1769875944939,0.001,2526.5,2525.7,13.39761329]
[1769875945625,0.001,2526.5,2525.8,0.98978541]
[1769875945921,0.001,2526.5,2525.9,13.39761329]
[1769875946824,0.001,2526.5,2525.7,1.00551696]
[1769875947025,0.001,2526.5,2525.5,1.00558472]
[1769875947322,0.001,2526.5,2525.6,0.989858]
[1769875947517,0.001,2526.5,2525.5,0.01571462]
[1769875947715,0.001,2526.5,2525.3,0.98997645]
[1769875947917,0.001,2526.5,2525.4,13.39761329]
[1769875948095,0.001,2526.5,2525.4,13.38189867]
[1769875948997,0.001,2526.5,2525.3,0.98997645]
[1769875949197,0.001,2526.5,2525.0,13.39761329]
[1769875949397,0.001,2526.5,2525.2,0.99001444]
[1769875949598,0.001,2526.5,2525.2,14.37191311]
[1769875949798,0.001,2526.5,2525.3,13.39761329]
[1769875950020,0.001,2526.5,2525.5,13.39761329]
[1769875950213,0.001,2526.5,2525.5,13.38189867]
[1769875951236,0.79274492,2527.0,2525.5,13.38189867]
[1769875951533,0.79274492,2527.0,2525.7,13.38189867]
[1769875951909,3.95685515,2527.3,2525.8,14.37168408]
[1769875952509,6.33985515,2527.3,2525.5,0.98987402]
[1769875952709,6.35556977,2527.3,2525.5,0.98987831]
[1769875952934,19.56990093,2527.3,2525.4,13.38189867]
[1769875953126,0.001,2526.5,2525.4,0.98991667]
[1769875953304,0.001,2526.5,2525.1,13.38189867]
[1769875953505,0.001,2527.7,2526.3,13.38189867]
[1769875953714,0.001,2527.7,2526.6,13.39761329]
[1769875953913,0.001,2527.7,2526.9,0.98935454]
[1769875954140,0.001,2527.7,2526.8,1.00507954]
[1769875954453,0.001,2527.7,2526.7,0.98940893]
[1769875954612,0.001,2527.7,2526.9,0.98935454]
[1769875955752,0.98890924,2528.1,2526.9,0.98935454]
[1769875955957,1.97290343,2530.3,2526.9,0.98935454]
[1769875955958,14.20274692,2529.3,2527.4,0.98915881]
[1769875956241,13.23004578,2529.2,2527.4,0.98915881]
[1769875956414,0.01571462,2529.0,2527.5,0.49457941]
[1769875956612,0.01571462,2529.0,2527.4,0.98915881]
[1769875957160,3.95165851,2530.6,2528.6,13.17969346]
[1769875957438,3.95061563,2531.3,2529.2,13.19540808]
[1769875957619,2.62140554,2531.2,2529.4,0.01571462]
[1769875958041,1.79140554,2531.2,2529.3,0.98841576]
[1769875958265,1.79140554,2531.2,2529.1,0.98848046]
[1769875958266,15.35880498,2531.0,2529.1,0.98848046]
[1769875958463,15.35880498,2530.8,2529.2,0.98844291]
[1769875958629,1.6187805,2530.7,2529.2,0.98844291]
[1769875958958,13.07820498,2530.5,2529.2,0.98844937]
[1769875959159,13.80480498,2530.4,2529.0,0.98852599]
[1769875959471,13.07820498,2530.2,2528.5,0.98871529]
[1769875959669,0.829,2530.1,2529.2,0.98843928]
[1769875960030,0.1024,2530.5,2528.6,3.95465227]
[1769875960264,15.58247769,2530.7,2528.7,0.01571462]
[1769875960563,0.829,2530.4,2528.7,0.01571462]
[1769875960769,1.55824777,2530.6,2528.7,0.01571462]
[1769875960962,1.55824777,2530.6,2529.1,0.01571462]
[1769875961163,0.829,2530.5,2528.9,13.51770155]
[1769875961352,0.98786899,2530.7,2528.9,13.51770155]
[1769875961660,0.98786899,2530.7,2528.6,3.95465227]
[1769875961661,13.6540859,2530.6,2528.6,3.95465227]
[1769875961835,12.7226859,2530.4,2528.5,0.98872849]
[1769875962037,0.98802513,2530.3,2528.4,3.95491398]
[1769875962232,0.1024,2530.1,2528.4,3.95491398]
[1769875962864,0.829,2530.0,2528.4,3.95491398]
[1769875963064,13.5516859,2530.0,2528.4,0.9887676]
[1769875963474,0.11811462,2530.1,2528.3,0.98879894]
[1769875963475,13.5516859,2529.9,2528.3,0.98879894]
[1769875964153,1.81722041,2529.8,2528.0,3.95563335]
[1769875964472,1.8492788,2529.7,2528.1,0.79114151]
[1769875964674,1.8492788,2529.7,2528.2,0.01571462]
[1769875964851,0.829,2529.6,2528.1,0.79114151]
[1769875965271,0.98820537,2529.9,2528.1,0.79114151]
[1769875965472,0.829,2529.5,2528.1,0.79114151]
[1769875965992,0.98820537,2529.9,2528.1,0.79114151]
[1769875966163,16.67536755,2530.0,2528.1,0.79114151]
[1769875966164,0.98825947,2529.7,2528.2,0.98884581]
[1769875966689,0.98825947,2529.7,2528.1,1.78002465]
[1769875966690,13.71094537,2529.7,2528.1,1.78002465]
[1769875966868,12.8250859,2529.6,2528.0,0.9889201]
[1769875967068,0.829,2529.5,2528.1,0.98885371]
[1769875967270,1.36540859,2529.4,2528.1,0.98885371]
[1769875967595,1.36540859,2529.4,2527.9,0.98893647]
[1769875967778,1.36540859,2529.4,2528.1,0.98887775]
[1769875967961,1.36540859,2529.4,2528.0,0.98890555]
[1769875968161,0.98841576,2529.3,2527.4,0.98915881]
[1769875968387,0.1024,2529.2,2527.5,0.49615087]
[1769875968581,1.20785662,2529.3,2527.5,0.51186549]
[1769875968795,0.829,2529.2,2527.5,0.51186549]
[1769875969782,3.59085662,2529.3,2527.5,0.49615087]
[1769875969783,0.829,2529.1,2527.5,0.49615087]
[1769875970171,12.8250859,2528.9,2526.6,0.01681462]
[1769875970375,12.8250859,2528.9,2525.6,14.5086372]
[1769875970376,3.78766515,2527.2,2525.6,14.5086372]
[1769875970587,0.829,2527.1,2525.6,14.5086372]
[1769875970765,0.1024,2527.8,2525.6,16.06646779]
[1769875971097,0.1024,2528.3,2525.8,13.51770155]
[1769875971391,0.1024,2528.3,2526.2,0.01571462]
[1769875971392,0.829,2527.7,2526.2,0.01571462]
[1769875971561,0.1024,2528.3,2526.2,0.01571462]
[1769875971762,0.1024,2528.0,2526.1,13.51770155]
[1769875971966,2.81684,2528.0,2526.1,13.51770155]
[1769875972393,0.1024,2527.8,2526.1,14.50733692]
[1769875972695,0.829,2527.7,2526.1,14.50733692]
[1769875972996,0.829,2527.7,2526.1,13.51770155]
[1769875973576,0.829,2527.7,2526.2,0.01571462]
[1769875973899,2.383,2526.0,2524.4,0.01571462]
[1769875974073,1.83668126,2526.3,2524.4,13.51770155]
[1769875974267,0.1024,2526.1,2524.4,13.51770155]
[1769875974593,0.98970704,2526.0,2524.4,13.51770155]
[1769875975200,0.829,2525.9,2524.4,13.51770155]
[1769875975773,0.829,2525.9,2523.9,3.97783363]
[1769875975774,0.829,2525.9,2523.9,13.51770155]
[1769875975988,2.34335625,2525.9,2524.0,0.01571462]
[1769875976168,0.829,2525.9,2524.0,0.01571462]
[1769875976374,0.9898246,2525.7,2524.2,0.01571462]
[1769875976585,0.9898246,2525.7,2524.0,14.52389631]
[1769875976774,0.829,2525.6,2524.2,0.01571462]
[1769875976975,0.829,2525.6,2524.0,14.52388654]
[1769875976976,1.4068123,2525.6,2524.0,14.52388654]
[1769875977205,1.4068123,2525.6,2524.1,0.99044907]
[1769875977501,0.5778123,2525.6,2524.0,14.50816789]
[1769875977694,1.4068123,2525.6,2524.0,14.50816789]
[1769875977897,0.23966369,2525.5,2524.0,14.50816789]
[1769875978213,0.23966369,2525.5,2524.2,14.50810689]
[1769875978380,0.23966369,2525.5,2524.1,3.97746667]
[1769875978381,0.98994218,2525.4,2525.0,0.0011]
[1769875979198,0.98994218,2525.4,2524.3,13.51770155]
[1769875979497,0.829,2526.1,2524.6,0.01571462]
[1769875980374,0.98970704,2526.0,2524.5,13.51770155]
[1769875980575,0.57775352,2525.9,2524.5,13.51770155]
[1769875982598,4.05998354,2526.8,2525.1,13.51770155]
[1769875982787,0.83,2526.7,2525.1,13.51770155]
[1769875983188,12.8250859,2526.6,2524.5,13.51770155]
[1769875983400,12.8250859,2526.4,2524.1,13.51770155]
[1769875983600,0.1024,2526.2,2524.4,0.99032276]
[1769875983800,0.1024,2526.2,2524.6,13.51770155]
[1769875984004,0.83,2526.1,2524.6,13.51770155]
[1769875984543,0.98947201,2526.6,2524.7,14.52359523]
[1769875984688,2.383,2526.4,2524.9,13.53341617]
[1769875984883,2.383,2526.3,2524.9,13.51770155]
[1769875985878,2.383,2526.2,2524.9,13.51770155]
[1769875986484,2.383,2526.2,2524.6,1.00596829]
[1769875986485,2.383,2526.0,2524.4,13.51770155]
[1769875987993,2.383,2526.0,2524.4,14.50803558]
[1769875988204,2.383,2526.0,2524.4,13.51770155]
[1769875988416,2.383,2525.8,2524.4,13.51770155]
[1769875988616,0.9898246,2525.7,2524.4,13.51770155]
[1769875988794,0.9898246,2525.7,2524.4,14.50803336]
[1769875988993,0.9898246,2525.7,2524.5,13.72337939]
[1769875989195,3.3154,2525.6,2523.9,13.72337939]
[1769875989509,3.3154,2525.6,2524.1,13.72337939]
[1769875989510,2.383,2525.4,2524.1,13.72337939]
[1769875990024,0.9898246,2525.7,2524.6,0.0011]
[1769875990324,3.3728246,2525.7,2524.6,0.0011]
[1769875995439,0.2,2525.6,2524.6,13.72447939]
[1769875995651,0.98990298,2525.5,2524.6,13.72447939]
[1769875996302,3.95948453,2526.3,2524.8,13.72337939]
[1769875996503,0.001,2526.3,2525.4,13.73909401]
[1769875996708,0.99060183,2526.3,2524.9,13.72337939]
[1769875996901,0.49488391,2526.2,2524.9,13.72337939]
[1769875997209,0.99060183,2526.3,2524.9,13.72337939]
[1769875997534,0.99060183,2526.3,2525.0,13.72337939]
[1769875997734,0.99060183,2526.3,2525.0,14.71347254]
[1769875998122,0.99060183,2526.3,2524.7,0.99019173]
[1769875998428,0.99060183,2526.3,2524.8,0.99017284]
[1769875998630,0.73318391,2526.2,2524.8,0.99017284]
[1769875999134,3.11618391,2526.2,2524.6,13.72447939]
[1769875999833,3.37266786,2526.1,2524.6,14.71473112]
[1769876001456,4.20266786,2526.1,2524.6,14.71473112]
[1769876001936,3.95967146,2526.3,2525.0,13.72337939]
[1769876001937,0.99060803,2526.3,2525.0,13.72337939]
[1769876002135,0.99060803,2526.3,2525.2,13.72337939]
[1769876002551,0.001,2526.3,2525.2,13.72337939]
[1769876002711,3.3722371,2527.2,2525.6,13.72337939]
[1769876002910,3.3722371,2527.2,2525.8,13.72337939]
[1769876003134,3.11591476,2527.1,2525.4,13.72337939]
[1769876003713,0.98931539,2527.0,2525.4,14.71329352]
[1769876004219,0.98931539,2527.0,2525.6,13.72337939]
[1769876005733,0.98931539,2527.0,2525.0,3.96027223]
[1769876005734,0.98939369,2526.8,2525.1,13.72337939]
[1769876005918,2.383,2526.6,2525.1,13.72337939]
[1769876006120,0.73299685,2526.7,2525.1,13.72337939]
[1769876006619,3.11599685,2526.7,2525.1,13.72337939]
[1769876007846,0.98947201,2526.6,2525.1,13.72337939]
[1769876008054,0.83,2526.5,2525.1,14.71343168]
[1769876008243,1.63633569,2526.5,2525.1,13.72337939]
[1769876008725,0.80633569,2526.5,2525.1,13.72337939]
[1769876009261,3.18933569,2526.5,2524.8,0.0011]
[1769876009579,3.18933569,2526.5,2524.8,29.21463556]
[1769876009856,3.18933569,2526.5,2524.9,13.72337939]
[1769876010055,1.49043111,2526.4,2524.9,13.72337939]
[1769876010256,3.87343111,2526.4,2524.9,13.72337939]
[1769876010624,1.49043111,2526.4,2524.9,13.72337939]
[1769876011435,1.49043111,2526.4,2525.1,13.72337939]
[1769876012156,3.95820139,2526.6,2525.3,13.72337939]
[1769876012157,3.95800252,2526.6,2525.3,13.72337939]
[1769876013054,0.98947201,2526.6,2525.1,14.72913686]
[1769876013355,0.98947201,2526.6,2525.1,13.72337939]
[1769876013556,0.56802217,2526.5,2525.1,13.72337939]
[1769876014458,0.98958951,2526.3,2525.1,13.72337939]
[1769876017563,0.98958951,2526.3,2525.1,28.22337939]
[1769876017946,1.81958951,2526.3,2525.1,28.22337939]
[1769876019005,1.81958951,2526.3,2524.6,3.96209181]
[1769876019006,13.42843407,2526.2,2524.6,0.0011]
[1769876019177,13.42843407,2526.0,2524.6,0.0011]
[1769876019382,14.05085009,2526.0,2524.6,0.0011]
[1769876019900,0.83,2525.9,2524.6,0.0011]
[1769876020269,1.62720236,2526.1,2524.6,13.30312587]
[1769876020507,0.83,2526.0,2524.6,13.30312587]
[1769876020802,13.65304673,2525.9,2524.5,0.0011]
[1769876020972,14.27546275,2525.9,2524.5,0.0011]
[1769876021166,0.83,2525.8,2524.5,0.0011]
[1769876021391,0.83,2525.7,2524.5,13.18615772]
[1769876021969,0.83,2525.7,2524.5,0.0011]
[1769876022198,0.83,2525.7,2524.1,13.18505772]
[1769876022199,13.53493211,2525.5,2523.6,13.18505772]
[1769876022576,16.90787429,2525.4,2523.6,27.68505772]
[1769876022902,0.1024,2525.2,2523.6,27.68505772]
[1769876023095,0.1024,2525.2,2523.5,0.0011]
[1769876023096,16.02033211,2525.2,2523.5,0.0011]
[1769876023398,16.03604673,2525.2,2523.5,0.0011]
[1769876023903,15.91793211,2524.9,2523.5,0.0011]
[1769876024076,2.43203321,2524.8,2523.5,0.0011]
[1769876024479,0.99021665,2524.7,2523.5,0.0011]
[1769876024681,14.52514876,2524.7,2523.5,0.0011]
[1769876025008,0.1024,2524.3,2523.2,2.13173868]
[1769876025319,0.83,2524.2,2522.4,13.18615772]
[1769876025814,1.46613321,2524.3,2522.4,13.18615772]
[1769876025978,0.83,2524.1,2522.4,13.18615772]
[1769876026397,1.36373321,2524.3,2522.5,13.20077234]
[1769876026707,13.53493211,2524.4,2522.7,13.18505772]
[1769876026708,2.31986653,2524.2,2522.7,13.18505772]
[1769876026999,1.82045204,2524.1,2522.7,13.18505772]
[1769876027200,1.82045204,2524.1,2522.4,14.5011]
[1769876027773,0.99045204,2524.1,2522.5,13.18505772]
[1769876027974,0.99045204,2524.1,2522.8,13.20077234]
[1769876028208,0.99045204,2524.1,2523.0,13.18505772]
[1769876028773,1.82045204,2524.1,2523.0,13.18505772]
[1769876029498,0.99043839,2524.2,2523.0,13.18505772]
[1769876030978,3.96165121,2524.4,2523.0,13.18505772]
[1769876031176,0.99021665,2524.7,2523.1,0.01571462]
[1769876031377,0.99021665,2524.7,2523.4,13.18505772]
[1769876031572,3.96018458,2525.2,2523.6,13.18505772]
[1769876031776,1.82005979,2525.1,2523.6,13.18505772]
[1769876031995,0.99005979,2525.1,2523.6,13.18505772]
[1769876032195,1.88110815,2525.1,2523.8,13.18505772]
[1769876032388,2.71110815,2525.1,2523.8,13.18505772]
[1769876033789,16.24604026,2525.1,2523.0,13.18505772]
[1769876033988,15.55555459,2525.0,2523.1,13.18505772]
[1769876034194,2.383,2524.9,2523.1,13.18505772]
[1769876034398,15.91793211,2524.9,2523.1,13.18505772]
[1769876035015,0.99017743,2524.8,2523.1,14.17589248]
[1769876035316,0.73338872,2524.7,2523.3,13.18505772]
[1769876035505,3.11638872,2524.7,2523.3,13.18505772]
[1769876035707,0.73338872,2524.7,2523.3,13.18505772]
[1769876036799,0.73338872,2524.7,2522.8,15.49094594]
[1769876036800,3.11638872,2524.7,2522.9,13.18505772]
[1769876037201,0.99025588,2524.6,2522.9,13.18505772]
[1769876037429,0.80676681,2524.5,2522.9,14.17597247]
[1769876037600,0.80676681,2524.5,2523.1,13.18505772]
[1769876037808,0.99025588,2524.6,2523.1,13.18505772]
[1769876038698,0.99025588,2524.6,2523.3,13.18505772]
[1769876039192,3.96102352,2524.7,2523.5,13.18505772]
[1769876040306,0.001,2524.5,2523.5,27.68505772]
[1769876040936,0.001,2524.5,2523.6,13.18505772]
[1769876041218,0.001,2524.5,2523.2,13.18505772]
[1769876041421,0.001,2524.5,2523.1,0.0011]
[1769876041422,2.4854,2524.4,2523.1,0.0011]
[1769876042093,16.64274813,2524.4,2522.6,0.0011]
[1769876042294,15.91793211,2524.2,2522.6,0.0011]
[1769876042895,3.00541602,2524.1,2522.6,0.0011]
[1769876043228,16.54034813,2524.1,2522.1,0.0011]
[1769876043424,15.91793211,2523.9,2522.1,0.0011]
[1769876043598,15.91793211,2523.3,2522.1,0.0011]
[1769876044124,15.91793211,2523.3,2521.8,0.0011]
[1769876044499,14.15734813,2523.3,2521.8,0.0011]
[1769876044821,0.83,2523.2,2521.8,0.0011]
[1769876045118,1.43649321,2523.1,2521.8,0.0011]
[1769876045335,0.99092314,2522.9,2521.8,0.0011]
[1769876045716,1.82092314,2522.9,2521.8,0.0011]
[1769876046098,0.99092314,2522.9,2521.8,0.0011]
[1769876046624,0.99092314,2522.9,2521.3,27.68615772]
[1769876046625,13.53493211,2522.5,2521.3,0.0011]
[1769876047417,13.92744642,2522.4,2521.3,0.0011]
[1769876047624,13.03872686,2522.3,2520.2,0.9919821]
[1769876047833,12.93632686,2522.1,2520.2,0.99195841]
[1769876048021,12.93632686,2522.1,2520.1,12.62373947]
[1769876048224,13.55874288,2522.1,2520.3,14.5]
[1769876048441,1.53469406,2522.0,2520.4,12.62373947]
[1769876048632,0.831,2521.9,2520.6,12.62373947]
[1769876048939,0.99111956,2522.4,2520.3,13.61567863]
[1769876048940,0.831,2521.8,2520.3,13.61567863]
[1769876049132,0.831,2521.7,2520.4,0.99188139]
[1769876049339,0.99147332,2521.5,2520.5,15.49185934]
[1769876049537,0.99147332,2521.5,2520.5,14.5]
[1769876049838,0.99147332,2521.5,2520.5,0.99185689]
[1769876050256,0.99147332,2521.5,2520.4,15.49188105]
[1769876050549,0.831,2521.6,2520.5,13.61559492]
[1769876051227,0.831,2521.6,2520.3,0.99191756]
[1769876051539,0.99127676,2522.0,2520.3,12.62373947]